fUST/lending_fUST_20250716
["ID","MTS","AMOUNT","RATE_DAILY","PERIOD"]
[372337671,1752599371357,-461.41079045,0.00019994,2]
[372337672,1752599371389,-460.0,0.00019994,2]
[372337673,1752599371419,-460.0,0.00019994,2]
[372337674,1752599371448,-475.89056441,0.00019994,2]
[372337675,1752599371479,-460.0,0.00019994,2]
[372337676,1752599371507,-460.0,0.00019994,2]
[372337677,1752599371537,-460.0,0.00019994,2]
[372337678,1752599371567,-460.0,0.00019994,2]
[372337679,1752599371596,-460.0,0.00019994,2]
[372337680,1752599371626,-460.0,0.00019994,2]
[372337681,1752599371656,-460.0,0.00019994,2]
[372337682,1752599371685,-460.0,0.00019994,2]
[372337683,1752599371874,-460.0,0.00019994,2]
[372337684,1752599371906,-460.0,0.00019994,2]
[372337685,1752599371936,-151.0,0.00019994,2]
[372337686,1752599371967,-460.0,0.00019994,2]
[372337687,1752599372006,-460.0,0.00019994,2]
[372337688,1752599372051,-378.53944476,0.00019994,2]
[372337689,1752599372063,-81.46055524,0.00019994,2]
[372337690,1752599372072,-305.6383484,0.00019994,2]
[372337691,1752599372089,-154.3616516,0.00019994,2]
[372337692,1752599372099,-305.6383484,0.00019994,2]
[372337693,1752599372111,-154.3616516,0.00019994,2]
[372337694,1752599372120,-151.0,0.00019994,2]
[372337695,1752599372129,-154.6383484,0.00019994,2]
[372337696,1752599372141,-305.3616516,0.00019994,2]
[372337697,1752599372151,-151.0,0.00019994,2]
[372337698,1752599372161,-3.6383484,0.00019994,2]
[372337699,1752599372173,-456.3616516,0.00019994,2]
[372337700,1752599372182,-43.6383484,0.00019994,2]
[372337701,1752599372217,-416.3616516,0.00019994,2]
[372337702,1752599372248,-460.0,0.00019994,2]
[372337703,1752599372279,-460.0,0.00019994,2]
[372337704,1752599372311,-460.0,0.00019994,2]
[372337705,1752599372341,-151.0,0.00019994,2]
[372337706,1752599372371,-460.0,0.00019994,2]
[372337707,1752599372405,-460.0,0.00019994,2]
[372337708,1752599372436,-460.0,0.00019994,2]
[372337709,1752599372467,-460.0,0.00019994,2]
[372337710,1752599372500,-460.0,0.00019994,2]
[372337711,1752599372531,-460.0,0.00019994,2]
[372337712,1752599372564,-151.0,0.00019994,2]
[372337713,1752599372597,-460.0,0.00019994,2]
[372337714,1752599372628,-460.0,0.00019994,2]
[372337715,1752599372659,-460.0,0.00019994,2]
[372337716,1752599372698,-460.0,0.00019994,2]
[372337717,1752599372736,-460.0,0.00019994,2]
[372337718,1752599372771,-798.1,0.00019994,2]
[372337719,1752599372805,-460.0,0.00019994,2]
[372337720,1752599372838,-460.0,0.00019994,2]
[372337721,1752599372868,-460.0,0.00019994,2]
[372337722,1752599372899,-460.0,0.00019994,2]
[372337723,1752599372921,-460.0,0.00019994,2]
[372337724,1752599372931,-307.21954647,0.00019994,2]
[372337725,1752599372946,-152.78045353,0.00019994,2]
[372337726,1752599372955,-24.59446355,0.00019994,2]
[372337727,1752599372969,-173.88804884,0.00019994,2]
[372337728,1752599372983,-261.51748761,0.00019994,2]
[372337729,1752599372993,-198.48251239,0.00019994,2]
[372337730,1752599373005,-261.51748761,0.00019994,2]
[372337731,1752599373014,-198.48251239,0.00019994,2]
[372337732,1752599373027,-261.51748761,0.00019994,2]
[372337733,1752599373037,-198.48251239,0.00019994,2]
[372337734,1752599373059,-261.51748761,0.00019994,2]
[372337735,1752599373071,-198.48251239,0.00019994,2]
[372337736,1752599373083,-261.51748761,0.00019994,2]
[372337737,1752599373093,-198.48251239,0.00019994,2]
[372337738,1752599373105,-261.51748761,0.00019994,2]
[372337739,1752599373114,-151.0,0.00019994,2]
[372337740,1752599373124,-47.48251239,0.00019994,2]
[372337741,1752599373136,-412.51748761,0.00019994,2]
[372337742,1752599373147,-186.92486736,0.00019994,2]
[372337743,1752599373159,-74.32720764,0.00019994,2]
[372337744,1752599373170,-385.67279236,0.00019994,2]
[372337745,1752599373182,-74.32720764,0.00019994,2]
[372337746,1752599373193,-385.67279236,0.00019994,2]
[372337747,1752599373206,-74.32720764,0.00019994,2]
[372337748,1752599373216,-385.67279236,0.00019994,2]
[372337749,1752599373283,-74.32720764,0.00019994,2]
[372337750,1752599373293,-389.4281615,0.00019994,2]
[372337751,1752599373319,-70.5718385,0.00019994,2]
[372337752,1752599373330,-389.4281615,0.00019994,2]
[372337753,1752599373342,-70.5718385,0.00019994,2]
[372337754,1752599373352,-151.0,0.00019994,2]
[372337755,1752599373362,-151.0,0.00019994,2]
[372337756,1752599373372,-87.4281615,0.00019994,2]
[372337757,1752599373394,-225.3628302,0.00019994,2]
[372337758,1752599373411,-147.2090083,0.00019994,2]
[372337759,1752599373421,-210.929115,0.00019994,2]
[372337760,1752599373431,-45.30108644,0.00019994,2]
[372337761,1752599373443,-460.0,0.00019994,2]
[372337762,1752599373456,-460.0,0.00019994,2]
[372337763,1752599373468,-118.01891356,0.00019994,2]
[372337764,1752599373480,-387.51108644,0.00019994,2]
[372337765,1752599373492,-72.48891356,0.00019994,2]
[372337766,1752599373502,-460.0,0.00019994,2]
[372337767,1752599373512,-22.98108644,0.00019994,2]
[372337768,1752599373524,-128.01891356,0.00019994,2]
[372337769,1752599373534,-331.98108644,0.00019994,2]
[372337770,1752599373546,-116.06025184,0.00019994,2]
[372337771,1752599373556,-369.03974816,0.00019994,2]
[372337772,1752599373568,-90.96025184,0.00019994,2]
[372337773,1752599373578,-151.0,0.00019994,2]
[372337774,1752599373587,-218.03974816,0.00019994,2]
[372337775,1752599373600,-241.96025184,0.00019994,2]
[372337776,1752599373610,-218.03974816,0.00019994,2]
[372337777,1752599373622,-241.96025184,0.00019994,2]
[372337778,1752599373632,-244.12974816,0.00019994,2]
[372337779,1752599373651,-215.87025184,0.00019994,2]
[372337780,1752599373661,-244.12974816,0.00019994,2]
[372337781,1752599373678,-215.87025184,0.00019994,2]
[372337782,1752599373689,-244.12974816,0.00019994,2]
[372337783,1752599373701,-215.87025184,0.00019994,2]
[372337784,1752599373711,-244.12974816,0.00019994,2]
[372337785,1752599373724,-215.87025184,0.00019994,2]
[372337786,1752599373735,-244.12974816,0.00019994,2]
[372337787,1752599373748,-215.87025184,0.00019994,2]
[372337788,1752599373759,-244.12974816,0.00019994,2]
[372337789,1752599373771,-215.87025184,0.00019994,2]
[372337790,1752599373781,-244.12974816,0.00019994,2]
[372337791,1752599373794,-151.0,0.00019994,2]
[372337792,1752599373806,-64.87025184,0.00019994,2]
[372337793,1752599373817,-395.12974816,0.00019994,2]
[372337794,1752599373830,-64.87025184,0.00019994,2]
[372337795,1752599373840,-460.0,0.00019995,2]
[372337796,1752599373850,-59.99974816,0.00019995,2]
[372337797,1752599373865,-400.00025184,0.00019995,2]
[372337798,1752599373875,-59.99974816,0.00019995,2]
[372337799,1752599373887,-400.00025184,0.00019995,2]
[372337800,1752599373896,-59.99974816,0.00019995,2]
[372337801,1752599373908,-400.00025184,0.00019995,2]
[372337802,1752599373918,-59.99974816,0.00019995,2]
[372337803,1752599373930,-66.64646146,0.00019995,2]
[372337804,1752599373942,-333.35379038,0.00019995,2]
[372337805,1752599373951,-460.0,0.00019995,2]
[372337806,1752599373962,-84.85620962,0.00019995,2]
[372337807,1752599373979,-375.14379038,0.00019995,2]
[372337808,1752599373989,-84.85620962,0.00019995,2]
[372337809,1752599374027,-375.14379038,0.00019995,2]
[372337810,1752599374060,-460.0,0.00019995,2]
[372337811,1752599374091,-460.0,0.00019995,2]
[372337812,1752599374122,-872.92,0.00019995,2]
[372337813,1752599374154,-375.70183003,0.00019996,2]
[372337814,1752599374185,-460.0,0.00019996,2]
[372337815,1752599374220,-460.0,0.00019996,2]
[372337816,1752599374253,-460.0,0.00019996,2]
[372337817,1752599374285,-460.0,0.00019996,2]
[372337818,1752599374317,-474.36897657,0.00019996,2]
[372337819,1752599374347,-460.0,0.00019996,2]
[372337820,1752599374378,-460.0,0.00019996,2]
[372337821,1752599374413,-160.0,0.00019996,2]
[372337822,1752599374444,-460.0,0.00019996,2]
[372337823,1752599374474,-460.0,0.00019996,2]
[372337824,1752599374507,-460.0,0.00019996,2]
[372337825,1752599374538,-460.0,0.00019996,2]
[372337826,1752599374570,-460.0,0.00019996,2]
[372337827,1752599374601,-460.0,0.00019996,2]
[372337828,1752599374631,-460.0,0.00019996,2]
[372337829,1752599374661,-460.0,0.00019996,2]
[372337830,1752599374694,-303.73080604,0.00019996,2]
[372337831,1752599374708,-156.26919396,0.00019996,2]
[372337832,1752599374719,-303.73080604,0.00019996,2]
[372337833,1752599374733,-156.26919396,0.00019996,2]
[372337834,1752599374743,-303.73080604,0.00019996,2]
[372337835,1752599374755,-156.26919396,0.00019996,2]
[372337836,1752599374764,-303.73080604,0.00019996,2]
[372337837,1752599374776,-156.26919396,0.00019996,2]
[372337838,1752599374786,-303.4139129,0.00019996,2]
[372337839,1752599374796,-0.31689314,0.00019996,2]
[372337840,1752599374807,-368.42,0.00019996,2]
[372337841,1752599374818,-93.64229302,0.00019996,2]
[372337842,1752599374828,-57.35770698,0.00019996,2]
[372337843,1752599374839,-460.0,0.00019996,2]
[372337844,1752599374851,-28.81106589,0.00019996,2]
[372337845,1752599374861,-122.18893411,0.00019996,2]
[372337846,1752599375003,-337.81106589,0.00019996,2]
[372337847,1752599375013,-250.84893411,0.00019996,2]
[372337848,1752599375025,-209.15106589,0.00019996,2]
[372337849,1752599375034,-250.84893411,0.00019996,2]
[372337850,1752599375046,-209.15106589,0.00019996,2]
[372337851,1752599375057,-218.82312369,0.00019996,2]
[372337852,1752599375070,-241.17687631,0.00019996,2]
[372337853,1752599375080,-460.0,0.00019996,2]
[372337854,1752599375089,-298.82312369,0.00019996,2]
[372337855,1752599375100,-161.37831487,0.00019996,2]
[372337856,1752599375109,-338.62168513,0.00019996,2]
[372337857,1752599375121,-121.37831487,0.00019996,2]
[372337858,1752599375130,-378.62168513,0.00019996,2]
[372337859,1752599375142,-81.77465229,0.00019996,2]
[372337860,1752599375152,-460.0,0.00019996,2]
[372337861,1752599375161,-34.69882104,0.00019996,2]
[372337862,1752599375173,-370.80328516,0.00019996,2]
[372337863,1752599375185,-54.4978938,0.00019996,2]
[372337864,1752599375195,-445.5021062,0.00019996,2]
[372337865,1752599375207,-56.66597518,0.00019996,2]
[372337866,1752599375217,-443.33402482,0.00019996,2]
[372337867,1752599375232,-16.66597518,0.00019996,2]
[372337868,1752599375241,-384.95920576,0.00019996,2]
[372337869,1752599375253,-75.04079424,0.00019996,2]
[372337870,1752599375263,-240.79724587,0.00019996,2]
[372337871,1752599375274,-219.20275413,0.00019996,2]
[372337872,1752599375285,-424.58390041,0.00019996,2]
[372337873,1752599375302,-35.41609959,0.00019996,2]
[372337874,1752599375312,-460.0,0.00019996,2]
[372337875,1752599375322,-4.58390041,0.00019996,2]
[372337876,1752599375334,-455.41609959,0.00019996,2]
[372337877,1752599375344,-162.85388981,0.00019996,2]
[372337878,1752599375356,-34.81149952,0.00019996,2]
[372337879,1752599375367,-460.0,0.00019996,2]
[372337880,1752599375376,-5.18850048,0.00019996,2]
[372337881,1752599375390,-454.81149952,0.00019996,2]
[372337882,1752599375400,-45.18850048,0.00019996,2]
[372337883,1752599375422,-415.3436782,0.00019996,2]
[372337884,1752599375433,-84.6563218,0.00019996,2]
[372337885,1752599375445,-375.3436782,0.00019996,2]
[372337886,1752599375455,-125.69166717,0.00019996,2]
[372337887,1752599375466,-334.30833283,0.00019996,2]
[372337888,1752599375477,-276.08166717,0.00019996,2]
[372337889,1752599375490,-184.32749379,0.00019996,2]
[372337890,1752599375500,-19.12250621,0.00019996,2]
[372337891,1752599375512,-440.87749379,0.00019996,2]
[372337892,1752599375522,-19.12250621,0.00019996,2]
[372337893,1752599375533,-440.87749379,0.00019996,2]
[372337894,1752599375544,-19.12250621,0.00019996,2]
[372337895,1752599375556,-440.87749379,0.00019996,2]
[372337896,1752599375565,-43.70537739,0.00019996,2]
[372337897,1752599375577,-416.29462261,0.00019996,2]
[372337898,1752599375587,-43.70537739,0.00019996,2]
[372337899,1752599375598,-107.29462261,0.00019996,2]
[372337900,1752599375607,-352.70537739,0.00019996,2]
[372337901,1752599375618,-107.29462261,0.00019996,2]
[372337902,1752599375627,-352.70537739,0.00019996,2]
[372337903,1752599375638,-107.29462261,0.00019996,2]
[372337904,1752599375648,-352.70537739,0.00019996,2]
[372337905,1752599375659,-107.29462261,0.00019996,2]
[372337906,1752599375669,-59.61762939,0.00019996,2]
[372337907,1752599375681,-400.38237061,0.00019996,2]
[372337908,1752599375690,-59.61762939,0.00019996,2]
[372337909,1752599375701,-400.38237061,0.00019996,2]
[372337910,1752599375711,-460.0,0.00019996,2]
[372337911,1752599375721,-12.53762939,0.00019996,2]
[372337912,1752599375735,-155.0,0.00019996,2]
[372337913,1752599375749,-292.46237061,0.00019996,2]
[372337914,1752599375758,-123.16732419,0.00019996,2]
[372337915,1752599375770,-137.71875189,0.00019996,2]
[372337916,1752599375782,-199.11392392,0.00019996,2]
[372337917,1752599375792,-260.88607608,0.00019996,2]
[372337918,1752599375803,-199.11392392,0.00019996,2]
[372337919,1752599375813,-260.88607608,0.00019996,2]
[372337920,1752599375825,-199.11392392,0.00019996,2]
[372337921,1752599375834,-129.92969163,0.00019996,2]
[372337922,1752599375846,-410.07030837,0.00019996,2]
[372337923,1752599375856,-49.92969163,0.00019996,2]
[372337924,1752599375867,-410.07030837,0.00019996,2]
[372337925,1752599375876,-49.92969163,0.00019996,2]
[372337926,1752599375889,-410.07030837,0.00019996,2]
[372337927,1752599375898,-49.92969163,0.00019996,2]
[372337928,1752599375910,-410.07030837,0.00019996,2]
[372337929,1752599375919,-49.92969163,0.00019996,2]
[372337930,1752599375931,-410.07030837,0.00019996,2]
[372337931,1752599375941,-49.92969163,0.00019996,2]
[372337932,1752599375952,-410.07030837,0.00019996,2]
[372337933,1752599375962,-49.92969163,0.00019996,2]
[372337934,1752599375974,-101.07030837,0.00019996,2]
[372337935,1752599375985,-216.40760842,0.00019996,2]
[372337936,1752599375997,-54.82722658,0.00019996,2]
[372337937,1752599376007,-306.31878098,0.00019996,2]
[372337938,1752599376020,-153.68121902,0.00019996,2]
[372337939,1752599376029,-306.31878098,0.00019996,2]
[372337940,1752599376041,-153.68121902,0.00019996,2]
[372337941,1752599376050,-306.31878098,0.00019996,2]
[372337942,1752599376061,-153.68121902,0.00019996,2]
[372337943,1752599376071,-266.34189574,0.00019996,2]
[372337944,1752599376080,-39.97688524,0.00019996,2]
[372337945,1752599376091,-420.02311476,0.00019996,2]
[372337946,1752599376100,-39.97688524,0.00019996,2]
[372337947,1752599376112,-420.02311476,0.00019996,2]
[372337948,1752599376122,-39.97688524,0.00019996,2]
[372337949,1752599376134,-420.02311476,0.00019996,2]
[372337950,1752599376144,-39.97688524,0.00019996,2]
[372337951,1752599376155,-111.02311476,0.00019996,2]
[372337952,1752599376165,-348.97688524,0.00019996,2]
[372337953,1752599376177,-460.0,0.00019996,2]
[372337954,1752599376189,-63.94311476,0.00019996,2]
[372337955,1752599376198,-151.0,0.00019996,2]
[372337956,1752599376210,-245.05688524,0.00019996,2]
[372337957,1752599376222,-460.0,0.00019996,2]
[372337958,1752599376235,-167.86311476,0.00019996,2]
[372337959,1752599376245,-292.13688524,0.00019996,2]
[372337960,1752599376259,-229.22741642,0.00019996,2]
[372337961,1752599376270,-351.55569834,0.00019996,2]
[372337962,1752599376280,-108.44430166,0.00019996,2]
[372337963,1752599376292,-42.55569834,0.00019996,2]
[372337964,1752599376301,-417.44430166,0.00019996,2]
[372337965,1752599376313,-42.55569834,0.00019996,2]
[372337966,1752599376323,-151.0,0.00019996,2]
[372337967,1752599376333,-151.0,0.00019996,2]
[372337968,1752599376343,-115.44430166,0.00019996,2]
[372337969,1752599376354,-344.55569834,0.00019996,2]
[372337970,1752599376363,-115.44430166,0.00019996,2]
[372337971,1752599376375,-344.55569834,0.00019996,2]
[372337972,1752599376384,-115.44430166,0.00019996,2]
[372337973,1752599376399,-344.55569834,0.00019996,2]
[372337974,1752599376409,-116.85509211,0.00019996,2]
[372337975,1752599376420,-343.14490789,0.00019996,2]
[372337976,1752599376430,-116.85509211,0.00019996,2]
[372337977,1752599376446,-343.14490789,0.00019996,2]
[372337978,1752599376456,-116.85509211,0.00019996,2]
[372337979,1752599376467,-343.14490789,0.00019996,2]
[372337980,1752599376480,-132.74565652,0.00019997,2]
[372337981,1752599376492,-348.46743457,0.00019997,2]
[372337982,1752599376501,-111.53256543,0.00019997,2]
[372337983,1752599376513,-348.46743457,0.00019997,2]
[372337984,1752599376523,-111.53256543,0.00019997,2]
[372337985,1752599376534,-348.46743457,0.00019997,2]
[372337986,1752599376543,-111.53256543,0.00019997,2]
[372337987,1752599376555,-348.46743457,0.00019997,2]
[372337988,1752599376564,-111.53256543,0.00019997,2]
[372337989,1752599376575,-348.46743457,0.00019997,2]
[372337990,1752599376585,-111.53256543,0.00019997,2]
[372337991,1752599376597,-392.66367293,0.00019997,2]
[372337992,1752599376607,-67.33632707,0.00019997,2]
[372337993,1752599376619,-392.66367293,0.00019997,2]
[372337994,1752599376629,-67.33632707,0.00019997,2]
[372337995,1752599376653,-392.66367393,0.00019997,2]
[372337996,1752599376670,-67.33632607,0.00019997,2]
[372337997,1752599376682,-392.66367393,0.00019997,2]
[372337998,1752599376692,-67.33632607,0.00019997,2]
[372337999,1752599376706,-392.66367393,0.00019997,2]
[372338000,1752599376715,-67.33632607,0.00019997,2]
[372338001,1752599376727,-108.45134286,0.00019997,2]
[372338002,1752599376738,-42.54865714,0.00019997,2]
[372338003,1752599376749,-417.91015435,0.00019997,2]
[372338004,1752599376758,-42.08984565,0.00019997,2]
[372338005,1752599376860,-419.73816489,0.00019997,2]
[372338006,1752599376869,-40.26183511,0.00019997,2]
[372338007,1752599376880,-343.39729028,0.00019997,2]
[372338008,1752599376891,-76.34087461,0.00019997,2]
[372338009,1752599376900,-340.02077699,0.00019997,2]
[372338010,1752599376911,-119.97922301,0.00019997,2]
[372338011,1752599376920,-340.02077699,0.00019997,2]
[372338012,1752599376936,-119.97922301,0.00019997,2]
[372338013,1752599376945,-340.02077699,0.00019997,2]
[372338014,1752599376957,-119.97922301,0.00019997,2]
[372338015,1752599376966,-340.02077699,0.00019997,2]
[372338016,1752599376978,-119.97922301,0.00019997,2]
[372338017,1752599376988,-31.02077699,0.00019997,2]
[372338018,1752599376999,-172.86480855,0.00019997,2]
[372338019,1752599377009,-287.13519145,0.00019997,2]
[372338020,1752599377020,-152.37486919,0.00019997,2]
[372338021,1752599377029,-307.62513081,0.00019997,2]
[372338022,1752599377040,-152.37486919,0.00019997,2]
[372338023,1752599377049,-307.62513081,0.00019997,2]
[372338024,1752599377060,-152.37486919,0.00019997,2]
[372338025,1752599377069,-307.62513081,0.00019997,2]
[372338026,1752599377080,-152.37486919,0.00019997,2]
[372338027,1752599377089,-307.62513081,0.00019997,2]
[372338028,1752599377104,-152.37486919,0.00019997,2]
[372338029,1752599377113,-307.62513081,0.00019997,2]
[372338030,1752599377125,-151.0,0.00019997,2]
[372338031,1752599377136,-1.37486919,0.00019997,2]
[372338032,1752599377146,-458.62513081,0.00019997,2]
[372338033,1752599377158,-65.59311161,0.00019997,2]
[372338034,1752599377167,-394.40688839,0.00019997,2]
[372338035,1752599377179,-65.59311161,0.00019997,2]
[372338036,1752599377188,-394.40688839,0.00019997,2]
[372338037,1752599377199,-65.59311161,0.00019997,2]
[372338038,1752599377209,-151.0,0.00019997,2]
[372338039,1752599377218,-243.40688839,0.00019997,2]
[372338040,1752599377231,-216.59311161,0.00019997,2]
[372338041,1752599377241,-151.0,0.00019997,2]
[372338042,1752599377251,-92.40688839,0.00019997,2]
[372338043,1752599377263,-367.59311161,0.00019997,2]
[372338044,1752599377273,-430.50688839,0.00019997,2]
[372338045,1752599377285,-460.0,0.00019997,2]
[372338046,1752599377296,-460.0,0.00019997,2]
[372338047,1752599377307,-407.67311161,0.00019997,2]
[372338048,1752599377317,-52.32688839,0.00019997,2]
[372338049,1752599377329,-460.0,0.00019997,2]
[372338050,1752599377340,-407.0766968,0.00019997,2]
[372338051,1752599377360,-375.14379038,0.00019997,2]
[372338052,1752599377371,-460.0,0.00019997,2]
[372338053,1752599377383,-3.63262443,0.00019997,2]
[372338054,1752599377395,-456.36737557,0.00019997,2]
[372338055,1752599377406,-872.92,0.00019997,2]
[372338056,1752599377421,-375.70183003,0.00019997,2]
[372338057,1752599377434,-53.1907944,0.00019997,2]
[372338058,1752599377444,-406.8092056,0.00019997,2]
[372338059,1752599377455,-460.0,0.00019997,2]
[372338060,1752599377467,-460.0,0.00019997,2]
[372338061,1752599377480,-431.3707944,0.00019997,2]
[372338062,1752599377490,-28.6292056,0.00019997,2]
[372338063,1752599377502,-431.3707944,0.00019997,2]
[372338064,1752599377511,-42.99818217,0.00019997,2]
[372338065,1752599377522,-417.94808622,0.00019997,2]
[372338066,1752599377531,-42.05191378,0.00019997,2]
[372338067,1752599377543,-417.94808622,0.00019997,2]
[372338068,1752599377552,-42.05191378,0.00019997,2]
[372338069,1752599377564,-160.0,0.00019997,2]
[372338070,1752599377577,-257.94808622,0.00019997,2]
[372338071,1752599377588,-202.05191378,0.00019997,2]
[372338072,1752599377601,-9.28634622,0.00019997,2]
[372338073,1752599377611,-450.71365378,0.00019997,2]
[372338074,1752599377622,-9.28634622,0.00019997,2]
[372338075,1752599377631,-450.71365378,0.00019997,2]
[372338076,1752599377643,-9.28634622,0.00019997,2]
[372338077,1752599377653,-151.395279,0.00019997,2]
[372338078,1752599377662,-151.0,0.00019997,2]
[372338079,1752599377673,-148.31837478,0.00019997,2]
[372338080,1752599377684,-311.68162522,0.00019997,2]
[372338081,1752599377694,-148.31837478,0.00019997,2]
[372338082,1752599377706,-311.68162522,0.00019997,2]
[372338083,1752599377715,-148.31837478,0.00019997,2]
[372338084,1752599377727,-311.68162522,0.00019997,2]
[372338085,1752599377844,-148.31837478,0.00019997,2]
[372338086,1752599377858,-311.68162522,0.00019997,2]
[372338087,1752599377868,-148.31837478,0.00019997,2]
[372338088,1752599377880,-311.68162522,0.00019997,2]
[372338089,1752599377889,-148.31837478,0.00019997,2]
[372338090,1752599381260,460.0,0.00019178,2]
[372338091,1752599381510,17.95086718,0.00019452,2]
[372338144,1752599432288,-290.0,0.00019177,2]
[372338146,1752599432298,-300.0,0.00019177,2]
[372338148,1752599432309,-217.0,0.00019177,2]
[372338150,1752599432319,-238.01754057,0.00019177,2]
[372338151,1752599432336,-47.98245943,0.00019177,2]
[372338152,1752599432345,-460.0,0.00019178,2]
[372338153,1752599432355,-460.0,0.00019178,2]
[372338154,1752599432366,-460.0,0.00019178,2]
[372338155,1752599432375,-460.0,0.00019178,2]
[372338156,1752599432385,-460.0,0.00019178,2]
[372338157,1752599432395,-460.0,0.00019178,2]
[372338158,1752599432407,-460.0,0.00019178,2]
[372338159,1752599432420,-460.0,0.00019178,2]
[372338161,1752599432430,-460.0,0.00019178,2]
[372338163,1752599432440,-460.0,0.00019178,2]
[372338164,1752599432451,-460.0,0.00019178,2]
[372338165,1752599432460,-340.50810664,0.00019178,2]
[372338171,1752599437112,-586.59,0.00019178,2]
[372338172,1752599437142,-460.0,0.00019178,2]
[372338173,1752599437173,-1701.76712447,0.00019178,2]
[372338174,1752599437204,-460.0,0.00019451,2]
[372338175,1752599437238,-442.04913282,0.00019452,2]
[372338176,1752599437269,-460.0,0.00019452,2]
[372338177,1752599437303,-460.0,0.00019452,2]
[372338178,1752599437335,-399.18748542,0.00019452,2]
[372338184,1752599437849,-60.81251458,0.00019452,2]
[372338185,1752599437880,-460.0,0.00019452,2]
[372338186,1752599437911,-529.06,0.00019452,2]
[372338187,1752599437944,-460.0,0.00019452,2]
[372338188,1752599437974,-460.0,0.00019452,2]
[372338189,1752599438004,-460.0,0.00019452,2]
[372338190,1752599438038,-460.0,0.00019452,2]
[372338191,1752599438078,-586.59,0.00019452,2]
[372338192,1752599438116,-377.57640303,0.00019726,2]
[372338193,1752599438149,-460.0,0.00019726,2]
[372338194,1752599438181,-460.0,0.00019726,2]
[372338196,1752599438382,-460.0,0.00019178,2]
[372338197,1752599438414,-547.50171902,0.00019726,2]
[372338199,1752599438446,-514.19,0.00019726,2]
[372338201,1752599438479,-460.0,0.00019726,2]
[372338205,1752599438511,-460.0,0.00019726,2]
[372338210,1752599438546,-586.59,0.00019726,2]
[372338212,1752599438577,-764.84,0.00019987,2]
[372338213,1752599438608,-460.0,0.00019987,2]
[372338214,1752599438638,-460.0,0.00019994,2]
[372338215,1752599438667,-113.75656196,0.00019994,2]
[372338216,1752599439152,-346.24343804,0.00019994,2]
[372338217,1752599439161,-1038.18,0.00019994,2]
[372338218,1752599439170,-460.0,0.00019994,2]
[372338219,1752599439180,-460.0,0.00019996,2]
[372338220,1752599439190,-460.0,0.00019996,2]
[372338221,1752599439199,-311.68162522,0.00019997,2]
[372338222,1752599439210,-460.0,0.00019997,2]
[372338223,1752599439219,-804.96427545,0.00019997,2]
[372338224,1752599439229,-872.92,0.00019997,2]
[372338225,1752599439239,-151.0,0.00019997,2]
[372338226,1752599439249,-460.0,0.00019997,2]
[372338227,1752599439258,-460.0,0.00019997,2]
[372338228,1752599439268,-460.0,0.00019997,2]
[372338229,1752599439278,-460.0,0.00019997,2]
[372338230,1752599439289,-151.0,0.00019997,2]
[372338231,1752599439298,-151.0,0.00019997,2]
[372338232,1752599439307,-460.0,0.00019997,2]
[372338233,1752599439317,-460.0,0.00019997,2]
[372338234,1752599439326,-151.0,0.00019997,2]
[372338235,1752599439337,-460.0,0.00019997,2]
[372338236,1752599439346,-216.20305,0.00019997,2]
[372338237,1752599439356,-460.0,0.00019997,2]
[372338238,1752599439365,-460.0,0.00019997,2]
[372338239,1752599439374,-460.0,0.00019997,2]
[372338240,1752599439384,-151.0,0.00019998,2]
[372338241,1752599439393,-151.0,0.00019998,2]
[372338242,1752599439405,-1758.18,0.00019998,2]
[372338243,1752599439418,-1758.18,0.00019998,2]
[372338244,1752599439428,-872.92,0.00019998,2]
[372338245,1752599439438,-872.92,0.00019998,2]
[372338246,1752599439448,-872.92,0.00019998,2]
[372338247,1752599439458,-500.0,0.00019998,2]
[372338248,1752599439468,-500.0,0.00019998,2]